[Event "-chT Youth Countries 2019"]
[Site "Wuerzburg"]
[Date "2019.10.04"]
[Round "5.8"]
[White "Ulrich, Helena Irene"]
[Black "Richter, Johanna"]
[Result "1-0"]
[ECO "B07"]
[WhiteElo "1355"]
[BlackElo "942"]
[Annotator "NA"]
[PlyCount "93"]
[EventDate "2019.10.02"]
[EventType "team-tourn"]
[EventRounds "7"]
[EventCountry "GER"]
[SourceTitle "playchess.com"]
[Source "ChessBase"]
[SourceQuality "1"]
[WhiteTeam "Thüringen"]
[BlackTeam "Rheinland-Pfalz"]
[TimeControl "40/5400+30:1800+30"]

1. e4 d6 {[%emt 0:00:00]} 2. d4 {[%emt 0:00:11]} Nf6 {[%emt 0:00:21]} 3. Nc3 {[%emt 0:01:25]} g6 {[%emt 0:00:44]} 4. Bd3 {[%emt 0:01:19]} Bg7 {[%emt 0:00:14]} 5. Nge2 {[%emt 0:01:30]} O-O {[%emt 0:00:24]} 6. O-O {[%emt 0:00:56]} Bg4 {[%emt 0:01:25]} 7. f3 {[%emt 0:00:52]} Bc8 {[%emt 0:02:07]} 8. Be3 {[%emt 0:02:18]} Nbd7 {[%emt 0:01:04]} 9. Qd2 {[%emt 0:02:33]} e5 {[%emt 0:02:12]} 10. Bc4 {[%emt 0:03:48]} b6 {[%emt 0:04:17]} 11. Nd5 {[%emt 0:02:35]} Bb7 {[%emt 0:03:30]} 12. Nec3 {[%emt 0:01:39]} c6 {[%emt 0:04:33]} 13. Nxf6+ {[%emt 0:01:12]} Nxf6 {[%emt 0:01:32]} 14. Rad1 {[%emt 0:03:30]} Re8 {[%emt 0:04:26]} 15. Bg5 {[%emt 0:02:39]} Rc8 {[%emt 0:06:33]} 16. dxe5 {[%emt 0:06:38]} dxe5 {[%emt 0:01:12]} 17. Bxf6 {[%emt 0:01:02]} Bxf6 {[%emt 0:00:46]} 18. Qd7 {[%emt 0:00:29]} Qe7 {[%emt 0:05:31]} 19. Rd6 {[%emt 0:03:37]} Bg7 {[%emt 0:02:03]} 20. Rfd1 {[%emt 0:01:25]} Rc7 {[%emt 0:02:24]} 21. Qxe7 {[%emt 0:00:16]} Rcxe7 {[%emt 0:00:49]} 22. Rd7 {[%emt 0:01:37]} b5 {[%emt 0:01:42]} 23. Bb3 {[%emt 0:01:04]} a6 {[%emt 0:01:40]} 24. a4 {[%emt 0:01:34]} Bh6 {[%emt 0:03:22]} 25. R1d6 {[%emt 0:03:23]} Be3+ {[%emt 0:01:38]} 26. Kf1 {[%emt 0:00:59]} Bd4 {[%emt 0:02:30]} 27. axb5 {[%emt 0:01:09]} axb5 {[%emt 0:00:55]} 28. Rd8 {[%emt 0:01:28]} b4 {[%emt 0:02:07]} 29. Rxe8+ {[%emt 0:00:14]} Rxe8 {[%emt 0:00:54]} 30. Na4 {[%emt 0:02:06]} Ba6+ {[%emt 0:00:44]} 31. Ke1 {[%emt 0:00:39]} Bb5 {[%emt 0:02:53]} 32. Rf6 {[%emt 0:01:31]} Rf8 {[%emt 0:01:09]} 33. Rd6 {[%emt 0:03:07]} Rc8 {[%emt 0:01:10]} 34. Kd2 {[%emt 0:00:28]} Bxa4 {[%emt 0:01:04]} 35. Bxa4 {[%emt 0:00:05]} Bxb2 {[%emt 0:00:24]} 36. Bxc6 {[%emt 0:00:39]} Bc3+ {[%emt 0:00:27]} 37. Ke2 {[%emt 0:01:15]} Rb8 {[%emt 0:04:55]} 38. Bd5 {[%emt 0:00:32]} Rc8 {[%emt 0:01:40]} 39. Kf2 {[%emt 0:01:25]} Bd4+ {[%emt 0:00:19]} 40. Kg3 {[%emt 0:01:24]} Rxc2 {[%emt 0:00:20]} 41. Rd7 {[%emt 0:30:34]} Bf2+ {[%emt 0:31:17]} 42. Kg4 {[%emt 0:01:41]} h5+ {[%emt 0:00:32]} 43. Kg5 {[%emt 0:01:26]} Be3+ {[%emt 0:00:30]} 44. Kf6 {[%emt 0:01:55]} Rxg2 {[%emt 0:01:57]} 45. Bxf7+ {[%emt 0:00:37]} Kh7 {[%emt 0:02:47]} 46. Bxg6+ {[%emt 0:00:16]} Kg8 {[%emt 0:00:51]} 47. Rd8# {[%emt 0:00:30] normal} 1-0

[Event "-chT Youth Countries 2019"]
[Site "Wuerzburg"]
[Date "2019.10.04"]
[Round "5.8"]
[White "Sens, Gerda"]
[Black "Haug, Mara"]
[Result "1-0"]
[ECO "C54"]
[WhiteElo "1291"]
[BlackElo "1508"]
[Annotator "NA"]
[PlyCount "115"]
[EventDate "2019.10.02"]
[EventType "team-tourn"]
[EventRounds "7"]
[EventCountry "GER"]
[SourceTitle "playchess.com"]
[Source "ChessBase"]
[SourceQuality "1"]
[WhiteTeam "Mecklenburg-Vorpommern"]
[BlackTeam "Baden 2"]
[TimeControl "40/5400+30:1800+30"]

1. e4 {[%emt 0:00:00]} e5 {[%emt 0:00:00]} 2. Nf3 {[%emt 0:00:00]} Nc6 {[%emt 0:00:00]} 3. Bc4 {[%emt 0:00:02]} Bc5 {[%emt 0:00:00]} 4. c3 {[%emt 0:00:19]} Nf6 {[%emt 0:00:00]} 5. d3 {[%emt 0:00:35]} h6 {[%emt 0:00:56]} 6. O-O {[%emt 0:01:06]} d6 {[%emt 0:03:11]} 7. Bb3 {[%emt 0:00:57]} Bg4 {[%emt 0:02:48]} 8. h3 {[%emt 0:02:03]} Bh5 {[%emt 0:01:58]} 9. Nbd2 {[%emt 0:01:56]} Qd7 {[%emt 0:02:42]} 10. Re1 {[%emt 0:01:44]} O-O-O {[%emt 0:08:09]} 11. Nf1 {[%emt 0:04:33]} g5 {[%emt 0:04:27]} 12. Ng3 {[%emt 0:04:02]} g4 {[%emt 0:02:16]} 13. Nxh5 {[%emt 0:02:26]} Nxh5 {[%emt 0:01:02]} 14. hxg4 {[%emt 0:00:57]} Qxg4 {[%emt 0:02:30]} 15. Nh2 {[%emt 0:02:01]} Qg6 {[%emt 0:06:19]} 16. Qg4+ {[%emt 0:01:53]} Qxg4 {[%emt 0:00:32]} 17. Nxg4 {[%emt 0:00:27]} Rh7 {[%emt 0:05:51]} 18. Be3 {[%emt 0:06:29]} Rg8 {[%emt 0:03:31]} 19. Bxf7 {[%emt 0:11:04]} Rxg4 {[%emt 0:07:04]} 20. Be6+ {[%emt 0:00:44]} Kb8 {[%emt 0:00:53]} 21. Bxg4 {[%emt 0:00:22]} Nf6 {[%emt 0:08:08]} 22. Bf5 {[%emt 0:05:15]} Rh8 {[%emt 0:00:26]} 23. b4 {[%emt 0:02:17]} Bxe3 {[%emt 0:01:26]} 24. Rxe3 {[%emt 0:00:38]} d5 {[%emt 0:03:13]} 25. Rf3 {[%emt 0:05:43]} a6 {[%emt 0:08:17]} 26. Be6 {[%emt 0:03:22]} Nh5 {[%emt 0:04:32]} 27. Bxd5 {[%emt 0:04:24]} Ne7 {[%emt 0:01:01]} 28. a4 {[%emt 0:06:00]} Nf4 {[%emt 0:01:18]} 29. Ra3 {[%emt 0:03:03]} Nexd5 {[%emt 0:02:42]} 30. exd5 {[%emt 0:00:24]} Rg8 {[%emt 0:00:40]} 31. g3 {[%emt 0:04:25]} Nxd5 {[%emt 0:00:39]} 32. Rf5 {[%emt 0:02:35]} Nf4 {[%emt 0:03:14]} 33. Rxe5 {[%emt 0:05:57]} Nxd3 {[%emt 0:01:05]} 34. Rh5 {[%emt 0:01:54]} Rg6 {[%emt 0:00:49]} 35. b5 {[%emt 0:03:46]} a5 {[%emt 0:01:14]} 36. Kf1 {[%emt 0:02:12]} Rf6 {[%emt 0:01:08]} 37. Ra2 {[%emt 0:02:35]} b6 {[%emt 0:00:53]} 38. Rd2 {[%emt 0:01:49]} Nc5 {[%emt 0:01:01]} 39. Rd8+ {[%emt 0:00:51]} Kb7 40. Rh4 {[%emt 0:01:07]} Re6 {[%emt 0:03:38]} 41. Rh8 {[%emt 0:31:34]} Ne4 {[%emt 0:34:21]} 42. R8xh6 {[%emt 0:01:14]} Rxh6 {[%emt 0:01:08]} 43. Rxh6 {[%emt 0:00:28]} Nxc3 {[%emt 0:00:11]} 44. g4 {[%emt 0:00:20]} Nxa4 {[%emt 0:02:31]} 45. g5 {[%emt 0:00:13]} Nc5 {[%emt 0:00:17]} 46. Rh4 {[%emt 0:00:58]} a4 {[%emt 0:01:00]} 47. Rc4 {[%emt 0:01:29]} a3 {[%emt 0:01:02]} 48. Rc1 {[%emt 0:00:25]} Ne6 {[%emt 0:02:08]} 49. g6 {[%emt 0:00:37]} Kc8 {[%emt 0:00:00]} 50. Ra1 {[%emt 0:00:00]} Kd7 {[%emt 0:00:00]} 51. Rxa3 {[%emt 0:00:00]} Ke7 {[%emt 0:00:00]} 52. Re3 {[%emt 0:00:00]} Kf6 {[%emt 0:00:00]} 53. Rg3 {[%emt 0:00:00]} Kg7 {[%emt 0:00:00]} 54. Re3 {[%emt 0:00:00]} Kf6 {[%emt 0:00:00]} 55. f4 {[%emt 0:00:00]} Ng7 {[%emt 0:00:00]} 56. Rc3 {[%emt 0:00:00]} Ne6 {[%emt 0:00:00]} 57. Rc6 {[%emt 0:00:00]} Ke7 {[%emt 0:00:00]} 58. g7 {[%emt 0:00:00] normal} 1-0

[Event "-chT Youth Countries 2019"]
[Site "Wuerzburg"]
[Date "2019.10.04"]
[Round "5.8"]
[White "Heinze, Sofie"]
[Black "Bako, Evelin"]
[Result "1-0"]
[ECO "A49"]
[WhiteElo "1207"]
[BlackElo "1209"]
[Annotator "NA"]
[PlyCount "75"]
[EventDate "2019.10.02"]
[EventType "team-tourn"]
[EventRounds "7"]
[EventCountry "GER"]
[SourceTitle "playchess.com"]
[Source "ChessBase"]
[SourceQuality "1"]
[WhiteTeam "Brandenburg/Berlin"]
[BlackTeam "Württemberg"]
[TimeControl "40/5400+30:1800+30"]

1. d4 {[%emt 0:00:00]} Nf6 {[%emt 0:00:00]} 2. Nf3 {[%emt 0:00:00]} g6 {[%emt 0:01:05]} 3. g3 {[%emt 0:00:00]} c5 {[%emt 0:01:11]} 4. d5 {[%emt 0:00:24]} b5 {[%emt 0:00:57]} 5. b3 {[%emt 0:04:12]} Bb7 {[%emt 0:02:12]} 6. c4 {[%emt 0:00:50]} bxc4 {[%emt 0:01:09]} 7. bxc4 {[%emt 0:00:08]} Bg7 {[%emt 0:00:52]} 8. Nc3 {[%emt 0:00:27]} O-O {[%emt 0:06:37]} 9. Bg2 {[%emt 0:00:18]} d6 {[%emt 0:01:59]} 10. O-O {[%emt 0:00:37]} Nfd7 {[%emt 0:11:00]} 11. Bb2 {[%emt 0:01:30]} f5 {[%emt 0:01:09]} 12. Ng5 {[%emt 0:01:57]} Qa5 {[%emt 0:04:50]} 13. Qd2 {[%emt 0:02:42]} Ne5 {[%emt 0:01:47]} 14. Qf4 {[%emt 0:03:55]} Nf7 {[%emt 0:06:07]} 15. Qd2 {[%emt 0:01:08]} Nxg5 {[%emt 0:01:43]} 16. Qxg5 {[%emt 0:14:57]} Bxc3 {[%emt 0:01:21]} 17. Bxc3 {[%emt 0:00:59]} Qxc3 {[%emt 0:00:09]} 18. Qxe7 {[%emt 0:00:44]} Ba6 {[%emt 0:10:11]} 19. Qxd6 {[%emt 0:03:09]} Qxc4 {[%emt 0:03:49]} 20. Qe6+ {[%emt 0:02:14]} Kg7 {[%emt 0:03:38]} 21. Qe5+ {[%emt 0:01:07]} Kh6 {[%emt 0:03:17]} 22. Qe3+ {[%emt 0:00:27]} f4 {[%emt 0:00:38]} 23. Qe7 {[%emt 0:01:34]} Rc8 {[%emt 0:04:16]} 24. Qh4+ {[%emt 0:02:12]} Kg7 {[%emt 0:01:06]} 25. Qe7+ {[%emt 0:00:23]} Kg8 {[%emt 0:02:33]} 26. Qe6+ Kf8 {[%emt 0:01:34]} 27. Qf6+ {[%emt 0:04:33]} Ke8 {[%emt 0:02:59]} 28. Qe6+ {[%emt 0:00:50]} Kd8 {[%emt 0:00:49]} 29. Qf6+ {[%emt 0:00:14]} Kc7 {[%emt 0:02:30]} 30. d6+ {[%emt 0:00:21]} Kb6 {[%emt 0:01:34]} 31. d7+ {[%emt 0:00:16]} Kc7 {[%emt 0:01:12]} 32. dxc8=Q+ Kxc8 {[%emt 0:01:05]} 33. Bxa8 {[%emt 0:02:52]} fxg3 {[%emt 0:04:55]} 34. hxg3 {[%emt 0:01:03]} Qxe2 {[%emt 0:02:12]} 35. Rad1 {[%emt 0:01:23]} Qe8 {[%emt 0:03:08]} 36. Rd6 {[%emt 0:02:23]} Bxf1 {[%emt 0:03:43]} 37. Bc6 {[%emt 0:02:12]} Qe1 {[%emt 0:01:56]} 38. Qd8# {normal} 1-0

[Event "-chT Youth Countries 2019"]
[Site "Wuerzburg"]
[Date "2019.10.05"]
[Round "6.2"]
[White "Schallner, Marc"]
[Black "Ratay, Meike"]
[Result "1-0"]
[ECO "B90"]
[WhiteElo "2027"]
[BlackElo "2032"]
[Annotator "NA"]
[PlyCount "57"]
[EventDate "2019.10.02"]
[EventType "team-tourn"]
[EventRounds "7"]
[EventCountry "GER"]
[SourceTitle "playchess.com"]
[Source "ChessBase"]
[SourceQuality "1"]
[WhiteTeam "Team Süd"]
[BlackTeam "Thüringen"]
[TimeControl "40/5400+30:1800+30"]

1. e4 {[%emt 0:00:00]} c5 {[%emt 0:00:00]} 2. Nf3 {[%emt 0:00:00]} d6 {[%emt 0:00:00]} 3. d4 {[%emt 0:00:00]} Nf6 {[%emt 0:00:00]} 4. Nc3 {[%emt 0:00:00]} cxd4 {[%emt 0:00:00]} 5. Nxd4 {[%emt 0:00:00]} a6 {[%emt 0:00:00]} 6. Be3 {[%emt 0:00:13]} e5 {[%emt 0:00:00]} 7. Nf3 {[%emt 0:00:09]} Be7 {[%emt 0:03:27]} 8. Bc4 {[%emt 0:00:41]} O-O {[%emt 0:02:15]} 9. O-O {[%emt 0:00:28]} Be6 {[%emt 0:05:41]} 10. Bxe6 {[%emt 0:03:13]} fxe6 {[%emt 0:00:04]} 11. Na4 {[%emt 0:00:12]} b5 12. Nb6 {[%emt 0:01:30]} Ra7 {[%emt 0:15:46]} 13. Ng5 {[%emt 0:01:41]} Qe8 {[%emt 0:10:55]} 14. Nxe6 {[%emt 0:07:03]} Rf7 {[%emt 0:00:06]} 15. Nd5 {[%emt 0:10:52]} Rd7 {[%emt 0:03:31]} 16. Nec7 {[%emt 0:04:57]} Qc8 {[%emt 0:09:28]} 17. Nxf6+ {[%emt 0:01:51]} Bxf6 {[%emt 0:03:09]} 18. Nd5 {[%emt 0:01:39]} Qb7 {[%emt 0:02:03]} 19. a4 {[%emt 0:04:53]} b4 {[%emt 0:02:36]} 20. c3 {[%emt 0:21:47]} Nc6 {[%emt 0:07:40]} 21. Qd2 {[%emt 0:14:40]} bxc3 {[%emt 0:02:41]} 22. bxc3 {[%emt 0:00:18]} Bd8 {[%emt 0:08:01]} 23. Rab1 {[%emt 0:01:50]} Qc8 {[%emt 0:00:56]} 24. Qd3 {[%emt 0:01:24]} Ne7 {[%emt 0:05:02]} 25. Nb6 {[%emt 0:08:20]} Bxb6 {[%emt 0:00:08]} 26. Rxb6 {[%emt 0:00:06]} d5 {[%emt 0:01:33]} 27. Qxa6 {[%emt 0:00:36]} Qxc3 {[%emt 0:02:36]} 28. Rb8+ {[%emt 0:00:36]} Rf8 {[%emt 0:00:48]} 29. Qe6+ {[%emt 0:00:13] normal} 1-0

[Event "-chT Youth Countries 2019"]
[Site "Wuerzburg"]
[Date "2019.10.05"]
[Round "6.3"]
[White "Grund, Sebastian"]
[Black "Jakob, Georg"]
[Result "0-1"]
[ECO "E11"]
[WhiteElo "2054"]
[BlackElo "1952"]
[Annotator "NA"]
[PlyCount "80"]
[EventDate "2019.10.02"]
[EventType "team-tourn"]
[EventRounds "7"]
[EventCountry "GER"]
[SourceTitle "playchess.com"]
[Source "ChessBase"]
[SourceQuality "1"]
[WhiteTeam "Thüringen"]
[BlackTeam "Team Süd"]
[TimeControl "40/5400+30:1800+30"]

1. d4 {[%emt 0:00:00]} Nf6 {[%emt 0:00:00]} 2. Nf3 {[%emt 0:00:00]} e6 {[%emt 0:00:00]} 3. c4 {[%emt 0:00:00]} Bb4+ {[%emt 0:00:00]} 4. Bd2 {[%emt 0:00:00]} c5 {[%emt 0:00:00]} 5. Bxb4 {[%emt 0:00:15]} cxb4 {[%emt 0:00:00]} 6. g3 O-O {[%emt 0:00:00]} 7. Bg2 {[%emt 0:00:16]} d6 {[%emt 0:00:05]} 8. O-O {[%emt 0:00:50]} Nc6 {[%emt 0:00:07]} 9. Nbd2 {[%emt 0:00:33]} e5 {[%emt 0:00:17]} 10. d5 {[%emt 0:02:36]} Nb8 {[%emt 0:00:41]} 11. Ne1 {[%emt 0:20:25]} a5 {[%emt 0:03:35]} 12. Nd3 {[%emt 0:02:26]} Na6 {[%emt 0:01:52]} 13. e4 {[%emt 0:03:00]} Nd7 {[%emt 0:05:53]} 14. a3 {[%emt 0:02:38]} Qb6 {[%emt 0:08:00]} 15. Kh1 {[%emt 0:07:56]} Nf6 {[%emt 0:08:35]} 16. Nc5 Nxc5 {[%emt 0:00:40]} 17. f4 {[%emt 0:09:38]} Nd3 {[%emt 0:23:52]} 18. Qe2 {[%emt 0:01:01]} Nxb2 {[%emt 0:01:12]} 19. fxe5 {[%emt 0:06:14]} dxe5 {[%emt 0:01:51]} 20. axb4 {[%emt 0:20:34]} Qxb4 {[%emt 0:02:50]} 21. Rfb1 {[%emt 0:06:58]} Qc3 {[%emt 0:08:31]} 22. Nf3 {[%emt 0:04:32]} Nd3 {[%emt 0:02:29]} 23. Bf1 {[%emt 0:02:14]} Bg4 {[%emt 0:05:42]} 24. Qe3 {[%emt 0:00:25]} Nf2+ {[%emt 0:00:29]} 25. Qxf2 {[%emt 0:00:21]} Bxf3+ {[%emt 0:00:16]} 26. Bg2 {[%emt 0:00:33]} Bxg2+ {[%emt 0:00:33]} 27. Qxg2 {[%emt 0:00:22]} Qxc4 {[%emt 0:00:15]} 28. Rxb7 {[%emt 0:01:01] unterminated} Qd4 {[%emt 0:00:14] unterminated} 29. Rf1 {[%emt 0:00:32]} Rab8 {[%emt 0:02:21]} 30. Rxb8 {[%emt 0:01:43] unterminated} Rxb8 {[%emt 0:00:36]} 31. Qf3 {[%emt 0:00:09] unterminated} Kh8 {[%emt 0:06:34]} 32. Rd1 {[%emt 0:00:55]} Qa4 {[%emt 0:01:55] unterminated} 33. d6 {[%emt 0:01:30]} Qd7 $19 {[%emt 0:01:20]} 34. Qa3 {[%emt 0:01:48]} a4 {[%emt 0:05:55]} 35. Rc1 {[%emt 0:01:51]} h6 {[%emt 0:00:47]} 36. Rd1 {[%emt 0:03:56]} Qg4 {[%emt 0:01:20]} 37. Qd3 {[%emt 0:00:40]} Rb3 {[%emt 0:00:31]} 38. Qd5 {[%emt 0:00:23]} Qf3+ {[%emt 0:00:16]} 39. Kg1 {[%emt 0:00:04] normal} Rb2 {[%emt 0:00:15]} 40. Qa8+ {[%emt 0:01:05]} Kh7 {[%emt 0:00:02] normal} 0-1

[Event "-chT Youth Countries 2019"]
[Site "Wuerzburg"]
[Date "2019.10.05"]
[Round "6.3"]
[White "Popist, Florian"]
[Black "Wu, Leon"]
[Result "1/2-1/2"]
[ECO "C45"]
[WhiteElo "2019"]
[BlackElo "2009"]
[Annotator "NA"]
[PlyCount "42"]
[EventDate "2019.10.02"]
[EventType "team-tourn"]
[EventRounds "7"]
[EventCountry "GER"]
[SourceTitle "playchess.com"]
[Source "ChessBase"]
[SourceQuality "1"]
[WhiteTeam "Hamburg/Schleswig-Holstein"]
[BlackTeam "Baden 2"]
[TimeControl "40/5400+30:1800+30"]

1. e4 {[%emt 0:00:00]} e5 {[%emt 0:00:00]} 2. Nf3 {[%emt 0:00:00]} Nc6 {[%emt 0:00:00]} 3. d4 {[%emt 0:00:10]} exd4 {[%emt 0:00:08]} 4. Nxd4 {[%emt 0:00:09]} Bc5 {[%emt 0:00:20]} 5. Nxc6 {[%emt 0:03:03]} Qf6 {[%emt 0:04:06]} 6. Qf3 {[%emt 0:00:10]} bxc6 {[%emt 0:00:23]} 7. Nc3 {[%emt 0:01:42]} Bd4 {[%emt 0:01:14]} 8. Bc4 {[%emt 0:07:43]} d6 {[%emt 0:01:20]} 9. Bg5 {[%emt 0:07:02]} Qxg5 {[%emt 0:08:19]} 10. Qxf7+ {[%emt 0:00:10]} Kd8 {[%emt 0:01:17]} 11. Qf8+ {[%emt 0:00:20]} Kd7 {[%emt 0:01:17]} 12. Bxg8 {[%emt 0:02:51]} Qf6 {[%emt 0:33:14]} 13. Qxf6 {[%emt 0:01:58]} gxf6 {[%emt 0:05:15]} 14. Bb3 {[%emt 0:02:13]} Re8 {[%emt 0:02:02]} 15. f3 {[%emt 0:05:00]} f5 {[%emt 0:04:02]} 16. Kd2 {[%emt 0:03:46]} Bxc3+ {[%emt 0:03:37]} 17. bxc3 {[%emt 0:04:35]} fxe4 {[%emt 0:00:18]} 18. fxe4 {[%emt 0:00:04]} Rxe4 {[%emt 0:01:09]} 19. Rae1 {[%emt 0:00:58]} Rxe1 {[%emt 0:01:01]} 20. Rxe1 {[%emt 0:00:08]} d5 {[%emt 0:02:04]} 21. c4 {[%emt 0:07:34]} Kd6 {[%emt 0:00:36] normal} 1/2-1/2

[Event "-chT Youth Countries 2019"]
[Site "Wuerzburg"]
[Date "2019.10.05"]
[Round "6.4"]
[White "Bakiev, Diyor"]
[Black "Jacoby, Angelina"]
[Result "1-0"]
[ECO "B13"]
[WhiteElo "2088"]
[BlackElo "1635"]
[Annotator "NA"]
[PlyCount "87"]
[EventDate "2019.10.02"]
[EventType "team-tourn"]
[EventRounds "7"]
[EventCountry "GER"]
[SourceTitle "playchess.com"]
[Source "ChessBase"]
[SourceQuality "1"]
[WhiteTeam "Hessen"]
[BlackTeam "Brandenburg/Berlin"]
[TimeControl "40/5400+30:1800+30"]

1. e4 {[%emt 0:00:00]} c6 {[%emt 0:00:00]} 2. d4 {[%emt 0:00:00]} d5 {[%emt 0:00:00]} 3. exd5 {[%emt 0:00:00]} cxd5 {[%emt 0:00:12]} 4. c4 {[%emt 0:00:16]} Nf6 {[%emt 0:01:35]} 5. Nc3 {[%emt 0:00:29]} Nc6 {[%emt 0:00:27]} 6. Bg5 {[%emt 0:01:25]} dxc4 {[%emt 0:08:42]} 7. d5 {[%emt 0:00:28]} Ne5 {[%emt 0:01:05]} 8. Qd4 {[%emt 0:00:42] unterminated} Nd3+ {[%emt 0:05:46]} 9. Bxd3 {[%emt 0:00:11]} cxd3 {[%emt 0:00:05] unterminated} 10. Qxd3 {[%emt 0:10:56] unterminated} Qb6 {[%emt 0:09:55]} 11. Nf3 {[%emt 0:07:16]} g6 {[%emt 0:04:39]} 12. d6 {[%emt 0:47:31]} Bf5 {[%emt 0:11:49]} 13. Qb5+ {[%emt 0:01:13]} Qxb5 {[%emt 0:01:04]} 14. Nxb5 {[%emt 0:00:06]} Nd5 {[%emt 0:03:40]} 15. Rd1 {[%emt 0:07:24]} a6 {[%emt 0:00:59]} 16. Nc7+ {[%emt 0:11:11]} Nxc7 {[%emt 0:01:03]} 17. dxc7 {[%emt 0:00:01]} f6 {[%emt 0:01:49] unterminated} 18. Be3 {[%emt 0:01:24]} e5 {[%emt 0:01:39]} 19. O-O {[%emt 0:01:08] unterminated} Bb4 {[%emt 0:06:28] unterminated} 20. Bb6 {[%emt 0:01:49] unterminated} Kf7 {[%emt 0:07:33]} 21. a3 {[%emt 0:00:36] unterminated} Be7 {[%emt 0:00:37]} 22. b4 {[%emt 0:02:29] unterminated} Be4 {[%emt 0:07:42]} 23. Nd2 {[%emt 0:01:48]} Bc6 {[%emt 0:01:17]} 24. Rc1 {[%emt 0:01:19]} Rac8 {[%emt 0:04:40]} 25. Nc4 {[%emt 0:00:48]} Bb5 {[%emt 0:00:53]} 26. Rfd1 {[%emt 0:00:11]} Bxc4 {[%emt 0:01:59]} 27. Rxc4 {[%emt 0:00:02]} Ke6 {[%emt 0:00:16]} 28. a4 {[%emt 0:01:15] unterminated} Bd6 {[%emt 0:01:36]} 29. b5 {[%emt 0:00:13] unterminated} axb5 {[%emt 0:07:45]} 30. axb5 {[%emt 0:00:01]} Ra8 $18 {[%emt 0:00:21]} 31. Be3 {[%emt 0:00:47]} Rhc8 {[%emt 0:00:46]} 32. b6 {[%emt 0:00:08]} Ra6 {[%emt 0:01:35]} 33. g3 {[%emt 0:00:30]} g5 {[%emt 0:00:46]} 34. Kg2 {[%emt 0:00:55]} h6 {[%emt 0:00:18]} 35. g4 {[%emt 0:00:50]} Ra5 {[%emt 0:02:55]} 36. Rc3 {[%emt 0:01:51]} Raa8 {[%emt 0:01:58]} 37. Rcd3 {[%emt 0:00:25]} Be7 {[%emt 0:00:40]} 38. Rd5 {[%emt 0:00:38]} Re8 {[%emt 0:02:11]} 39. Bc5 {[%emt 0:00:35]} Bxc5 {[%emt 0:01:44]} 40. Rxc5 {[%emt 0:00:01]} Ke7 {[%emt 0:00:20]} 41. Rcd5 {[%emt 0:30:12]} Rec8 {[%emt 0:07:31]} 42. Rd7+ {[%emt 0:00:00]} Ke8 {[%emt 0:00:41]} 43. Rh7 {[%emt 0:00:00]} Kf8 {[%emt 0:01:35]} 44. Rd6 {[%emt 0:00:00] normal} 1-0

[Event "-chT Youth Countries 2019"]
[Site "Wuerzburg"]
[Date "2019.10.05"]
[Round "6.4"]
[White "Gutkin, Ilya"]
[Black "Boder, Jan"]
[Result "1/2-1/2"]
[ECO "A04"]
[WhiteElo "2047"]
[BlackElo "2087"]
[Annotator "NA"]
[PlyCount "124"]
[EventDate "2019.10.02"]
[EventType "team-tourn"]
[EventRounds "7"]
[EventCountry "GER"]
[SourceTitle "playchess.com"]
[Source "ChessBase"]
[SourceQuality "1"]
[WhiteTeam "Nordrhein-Westfalen"]
[BlackTeam "Rheinland-Pfalz"]
[TimeControl "40/5400+30:1800+30"]

1. Nf3 {[%emt 0:00:00]} c5 {[%emt 0:00:00]} 2. b3 {[%emt 0:00:00]} Nc6 {[%emt 0:00:09]} 3. Bb2 {[%emt 0:00:00]} d5 {[%emt 0:00:21]} 4. e3 {[%emt 0:01:27]} a6 {[%emt 0:00:17]} 5. d4 {[%emt 0:01:38]} cxd4 {[%emt 0:00:15] unterminated} 6. exd4 {[%emt 0:03:58]} Nf6 {[%emt 0:00:13]} 7. a3 {[%emt 0:04:41]} g6 {[%emt 0:00:45]} 8. Bd3 {[%emt 0:01:20]} Bg7 {[%emt 0:00:15]} 9. Nbd2 {[%emt 0:00:27]} O-O {[%emt 0:01:09]} 10. O-O {[%emt 0:00:35] unterminated} Nh5 {[%emt 0:06:48] unterminated} 11. Re1 {[%emt 0:08:52] unterminated} Nf4 {[%emt 0:04:32] unterminated} 12. Bf1 {[%emt 0:02:54]} Bf5 {[%emt 0:02:14] unterminated} 13. Ne5 {[%emt 0:20:31] unterminated} Rc8 {[%emt 0:07:39]} 14. Rc1 {[%emt 0:00:15] unterminated} Nxe5 {[%emt 0:07:59]} 15. dxe5 {[%emt 0:00:06] unterminated} Bh6 {[%emt 0:00:19] unterminated} 16. Bd4 {[%emt 0:26:38] unterminated} Qa5 {[%emt 0:15:08] unterminated} 17. Be3 {[%emt 0:07:29] [#] unterminated} d4 $1 {[%emt 0:01:30]} 18. Bxf4 {[%emt 0:04:49]} Bxf4 {[%emt 0:00:16]} 19. Nc4 {[%emt 0:00:03]} Qd8 {[%emt 0:00:17]} 20. Nd2 {[%emt 0:04:51]} Qc7 {[%emt 0:01:57]} 21. g3 {[%emt 0:02:03]} Bxe5 {[%emt 0:03:29]} 22. Bd3 {[%emt 0:00:13]} Be6 {[%emt 0:03:09]} 23. Qf3 {[%emt 0:00:50]} Bg7 {[%emt 0:00:59]} 24. a4 {[%emt 0:00:59]} Qd7 {[%emt 0:00:41]} 25. Nc4 {[%emt 0:01:01]} Bxc4 {[%emt 0:02:57]} 26. Bxc4 {[%emt 0:00:05]} e5 {[%emt 0:00:13]} 27. Re2 {[%emt 0:01:57]} Kh8 {[%emt 0:00:33]} 28. Qg2 {[%emt 0:01:58]} f5 {[%emt 0:00:13]} 29. f3 {[%emt 0:00:06]} Bh6 {[%emt 0:02:41]} 30. Rd1 {[%emt 0:00:34]} b5 {[%emt 0:00:38]} 31. axb5 {[%emt 0:00:31]} axb5 {[%emt 0:00:04]} 32. Bd3 {[%emt 0:00:05]} Be3+ {[%emt 0:00:09] unterminated} 33. Kh1 {[%emt 0:00:32]} Qc6 {[%emt 0:00:10] unterminated} 34. g4 {[%emt 0:01:23]} Rce8 {[%emt 0:03:17]} 35. Rf1 {[%emt 0:00:07]} fxg4 {[%emt 0:00:54]} 36. Be4 {[%emt 0:01:40]} Qe6 {[%emt 0:00:54]} 37. fxg4 {[%emt 0:00:13]} Rxf1+ {[%emt 0:01:51]} 38. Qxf1 {[%emt 0:00:05]} Kg7 {[%emt 0:00:05]} 39. Rg2 {[%emt 0:02:16] unterminated} b4 {[%emt 0:03:02]} 40. Qb5 {[%emt 0:02:15]} Rf8 {[%emt 0:00:18] unterminated} 41. Rg3 {[%emt 0:09:47] unterminated} Rf4 $17 {[%emt 0:08:43]} 42. Qb7+ {[%emt 0:07:52]} Qf7 {[%emt 0:01:48]} 43. Qxf7+ {[%emt 0:00:12]} Rxf7 {[%emt 0:00:08]} 44. Rf3 {[%emt 0:01:01]} Bf4 {[%emt 0:00:07]} 45. Rf1 {[%emt 0:00:54]} Ra7 {[%emt 0:00:16]} 46. Kg2 {[%emt 0:00:44]} Kf6 {[%emt 0:00:10]} 47. h3 {[%emt 0:00:38]} Ke6 {[%emt 0:00:09]} 48. Kf3 {[%emt 0:00:28]} Rc7 {[%emt 0:02:14]} 49. Ra1 {[%emt 0:00:58]} Kf6 {[%emt 0:09:12]} 50. h4 {[%emt 0:04:09]} Kg7 {[%emt 0:00:04]} 51. Ra6 {[%emt 0:01:37]} Rf7 {[%emt 0:01:22]} 52. Bd5 {[%emt 0:00:49]} Rf8 {[%emt 0:01:15]} 53. Ra7+ {[%emt 0:00:26]} Kh8 {[%emt 0:00:46]} 54. Ra8 {[%emt 0:00:26]} Rxa8 {[%emt 0:00:23]} 55. Bxa8 {[%emt 0:00:06]} Kg7 {[%emt 0:00:04]} 56. h5 {[%emt 0:00:31]} gxh5 {[%emt 0:00:13]} 57. gxh5 {[%emt 0:00:04]} Kf6 {[%emt 0:00:28]} 58. Kg4 {[%emt 0:00:15]} Ke6 {[%emt 0:00:40]} 59. Be4 {[%emt 0:00:06]} h6 {[%emt 0:00:10]} 60. Bd3 {[%emt 0:01:35]} Kd5 {[%emt 0:01:05]} 61. Kf5 {[%emt 0:00:04]} Kc5 {[%emt 0:00:26]} 62. Ke4 {[%emt 0:00:57]} Kd6 {normal} 1/2-1/2